[Event "AUT Bundesliga 2024-25"]
[Site "Austria"]
[Date "2025.04.04"]
[Round "8.8"]
[White "Pechac, Jergus"]
[Black "Kozak, Adam"]
[Result "1/2-1/2"]
[Annotator "TA"]
[ECO "C55"]
[WhiteElo "2600"]
[BlackElo "2598"]
[PlyCount "88"]
[EventDate "2024.08.28"]
[EventType "team-tourn"]
[EventCountry "AUT"]
[SourceTitle "playchess.com"]
[Source "ChessBase"]
[SourceQuality "1"]
[TimeControl "40/5400+30:1800+30"]

{[%evp 10,88,33,23,42,42,42,41,48,50,54,39,41,41,52,44,56,41,62,46,54,45,41,27,31,27,43,7,16,12,35,35,35,35,35,23,34,18,12,0,0,-4,-3,-25,-11,-11,-11,-77,-88,-71,-52,-71,-45,-45,-52,-79,-65,-71,-66,-39,-16,-17,-17,-17,-16,-16,-15,-227,-40,-26,-8,0,0,0,0,0,0,0,0,0,0]} 1. e4 {[%emt 0:00:28]} e5 {[%emt 0:00:11]} 2. Nf3 {[%emt 0:00:06]} Nc6 {[%emt 0:00:08]} 3. Bc4 {[%emt 0:00:06]} Nf6 {[%emt 0:01:25]} 4. d3 {[%emt 0:00:05][%cal Bd2d3,Bd3d4,Bd4d5][%mdl 32]} h6 {[%emt 0:00:25]} 5. O-O {[%emt 0:00:28]} d6 {[%emt 0:00:45]} 6. c3 {[%emt 0:00:21]} Na5 {[%emt 0:07:35]} 7. Bb5+ {[%emt 0:00:44]} Bd7 {[%emt 0:00:16]} 8. Bxd7+ {[%emt 0:06:10]} Qxd7 {[%emt 0:00:09] White is slightly better.} 9. d4 {[%emt 0:03:02]} Nc6 {[%emt 0:03:08]} 10. Qe2 {[%emt 0:09:38]} Be7 {[%emt 0:10:07]} 11. d5 {[%emt 0:03:03]} Nb8 {[%emt 0:00:14]} 12. c4 {[%emt 0:02:31]} a5 {[%emt 0:04:51]} 13. Nc3 {[%emt 0:01:16]} Na6 {[%emt 0:00:55]} 14. Be3 {[%emt 0:03:57]} O-O {[%emt 0:16:18]} 15. h3 {[%emt 0:02:50][%cal Oc4c5]} b6 {[%emt 0:11:50]} 16. Ne1 {[%emt 0:03:36]} Nh7 {[%emt 0:01:53]} 17. Nd3 {[%emt 0:00:45]} Bg5 {[%emt 0:03:16]} 18. a3 {[%emt 0:08:52]} a4 {[%emt 0:03:46]} 19. Bxg5 {[%emt 0:05:58]} hxg5 {[%emt 0:00:30]} 20. Qg4 {[%emt 0:02:25]} Qxg4 {[%emt 0:10:46]} 21. hxg4 {[%emt 0:00:04]} Nc5 {[%emt 0:02:36]} 22. Nxc5 {[%emt 0:00:06]} dxc5 {[%emt 0:00:09]} 23. Nb5 {[%emt 0:03:42]} Rfc8 {[%emt 0:00:34]} 24. g3 {[%emt 0:05:43]} Nf6 {[%emt 0:03:38][%csl LRe4,LRg4]} 25. f3 {[%emt 0:00:11]} Ne8 {[%emt 0:08:54]} 26. f4 {[%emt 0:01:20]} gxf4 {[%emt 0:00:06]} 27. gxf4 {[%emt 0:00:05]} Nd6 {[%emt 0:00:11]} 28. fxe5 {[%emt 0:01:37]} (28. Nxd6 $11 {keeps the balance.} cxd6 29. f5) 28... Nxc4 $17 {[%emt 0:03:42]} 29. d6 {[%emt 0:09:39]} cxd6 {[%emt 0:00:06]} (29... Nxb2 30. Nxc7 Ra7 31. Nd5 $16) (29... c6 30. Nc7 Ra7 31. e6 fxe6 32. d7 Rb8) 30. Nxd6 {[%emt 0:06:10]} Nxd6 {[%emt 0:00:05]} 31. exd6 {[%emt 0:00:06][%mdl 4096] Endgame KRR-KRR} Re8 {[%emt 0:00:15]} 32. Rf4 {[%emt 0:01:03]} Rad8 {[%emt 0:02:07]} 33. Rd1 {[%emt 0:00:09]} Re5 {[%emt 0:03:18]} 34. d7 {[%emt 0:11:11]} Kf8 {[%emt 0:01:57] next ...Ke7 is good for Black.} 35. Rd6 $1 {[%emt 0:00:05]} b5 {[%emt 0:00:26]} 36. Kf2 {[%emt 0:01:35]} Ke7 {[%emt 0:00:42][%csl LRd6,LRd7]} 37. Rb6 {[%emt 0:00:04]} c4 {[%emt 0:00:51]} (37... Rxd7 38. Rxb5 g6 39. Rb8 $15) (37... Rxd7 38. Rxb5 f6 39. Ke3 Rg5) 38. Rb7 $2 {[%emt 0:00:04] [#]} (38. Rf5 $11 {and White is okay.} Rxe4 39. Kf3) 38... f6 $2 {[%emt 0:00:39]} ({Stronger than} 38... Rxd7 39. Rxf7+ Kxf7 40. Rxd7+ Ke8 41. Rxg7 $11) ({Black should try} 38... Kd6 $1 $19 {[%cal Rd6c6]} 39. Ra7 (39. Rxf7 Kc6 $17) 39... f6 (39... Rxd7 40. Rxd7+ Kxd7 41. Rxf7+ Re7 42. Rf4 $15)) 39. Rf5 $15 {[%emt 0:00:05]} Rxe4 {[%emt 0:00:18]} (39... Rxd7 {simplifies} 40. Rxe5+ fxe5 41. Rxb5 Kf6) 40. g5 {[%emt 0:00:05] The position is equal.} (40. Kf3 {feels hotter.} Rd4 41. Rfxb5 c3 42. bxc3 Rd3+ 43. Ke4) 40... Rxd7 {[%emt 0:00:52]} 41. gxf6+ {[%emt 0:30:10]} gxf6 {[%emt 0:30:05]} 42. Rfxb5 {[%emt 0:01:32]} Rxb7 {[%emt 0:00:00]} 43. Rxb7+ {[%emt 0:00:00]} Kd6 {[%emt 0:00:00]} 44. Rb4 {[%emt 0:00:00]} Kc5 {[%emt 0:00:00] Weighted Error Value: White=0.19 (very precise) /Black=0.10 (very precise)   Loses game:     	White=1     	---        Missed win:     	---       	Black=1      Mistake:       	White=1     	---        Inaccurate:     	White=2     	Black=1      OK:         	White=15    	Black=20     Strong:       	White=1     	---} 1/2-1/2

[Event "AUT Bundesliga 2024-25"]
[Site "Austria"]
[Date "2025.04.04"]
[Round "8.9"]
[White "Markus, Robert"]
[Black "Zilka, Stepan"]
[Result "1/2-1/2"]
[Annotator "TA"]
[ECO "E46"]
[WhiteElo "2595"]
[BlackElo "2515"]
[PlyCount "148"]
[EventDate "2024.08.28"]
[EventType "team-tourn"]
[EventCountry "AUT"]
[SourceTitle "playchess.com"]
[Source "ChessBase"]
[SourceQuality "1"]
[TimeControl "40/5400+30:1800+30"]

{[%evp 16,148,0,-14,0,0,0,0,-3,0,0,0,0,0,0,0,0,-13,-10,-27,0,0,0,-15,-16,-13,-11,-20,-9,-20,-18,-38,-31,-49,-21,-13,-19,-5,-7,-20,0,0,7,7,7,0,0,-9,115,77,100,108,98,104,116,81,77,75,54,54,54,54,71,54,54,54,54,54,54,54,54,55,329,228,289,274,202,200,472,466,627,622,610,610,579,583,408,34,44,8,14,16,17,8,8,8,8,8,8,8,8,8,8,8,8,8,8,8,8,8,8,8,8,8,8,0,0,0,0,0,0,0,0,0,0,0,0,0,0,0,0,0,0,0,0]} 1. d4 {[%emt 0:00:04]} Nf6 {[%emt 0:00:10]} 2. c4 {[%emt 0:00:08]} e6 {[%emt 0:00:03]} 3. Nc3 {[%emt 0:00:13]} Bb4 {[%emt 0:00:05]} 4. e3 {[%emt 0:00:07]} O-O {[%emt 0:00:31]} 5. Nge2 {[%emt 0:00:06]} d5 {[%emt 0:00:23]} 6. a3 {[%emt 0:00:08]} Be7 {[%emt 0:00:05]} 7. cxd5 {[%emt 0:03:50]} exd5 {[%emt 0:00:08]} 8. Nf4 $1 {[%emt 0:01:19] 8.Nf4 scores better than 8.g3.} c6 {[%emt 0:05:23]} 9. Bd3 {[%emt 0:00:23]} Na6 {[%emt 0:00:23] E46: Nimzo-Indian: Rubinstein: 4 e3 0-0 5 Ne2 without early Bd3.} 10. O-O {[%emt 0:00:29]} Nc7 {[%emt 0:00:06]} 11. Bd2 {[%emt 0:04:03]} Ne6 {[%emt 0:00:58]} 12. Nce2 {[%emt 0:04:50]} Nxf4 {[%emt 0:03:17]} 13. Nxf4 {[%emt 0:00:28]} Re8 {[%emt 0:04:32]} 14. Bb4 {[%emt 0:04:17]} Bxb4 {[%emt 0:02:39]} 15. axb4 {[%emt 0:00:31]} Bg4 {[%emt 0:13:56]} 16. Qc2 $146 {[%emt 0:06:28]} (16. f3 Bh5 17. Re1 a6 18. Qc2 Bg6 19. Bxg6 hxg6 20. Nd3 Re7 21. Nc5 Qb6 22. Qd2 {0-1 Lahlum,H (2201)-Bogatyrev,I (2263) RUS-Nordic email 2017 [40]}) 16... a6 {[%emt 0:01:51]} 17. Rfe1 {[%emt 0:02:12]} Qd6 {[%emt 0:05:38]} 18. Qc5 {[%emt 0:05:10]} Rad8 {[%emt 0:00:13]} 19. Qxd6 {[%emt 0:05:43]} Rxd6 {[%emt 0:00:06]} 20. f3 {[%emt 0:00:19]} Bc8 {[%emt 0:01:20]} 21. h4 {[%emt 0:04:27]} h5 {[%emt 0:00:44]} 22. Kf2 {[%emt 0:02:16]} g6 {[%emt 0:00:55]} 23. Ne2 {[%emt 0:06:09][%cal Bf4e2,Be2c1,Bc1b3,Bb3c5][%mdl 32]} Kf8 {[%emt 0:05:23][%cal Bg8f8,Bf8e7,Be7d8,Bd8c7][%mdl 32]} 24. Nc1 {[%emt 0:03:22]} Ke7 {[%emt 0:01:49]} 25. Nb3 {[%emt 0:00:42]} Kd8 {[%emt 0:01:16]} 26. Nc5 {[%emt 0:02:23]} Kc7 {[%emt 0:01:02]} 27. Rad1 {[%emt 0:07:54]} Nd7 {[%emt 0:10:04][%cal Bf6d7,Bd7f8,Bf8e6,Be6g7,Bg7f5][%mdl 32]} 28. Bc2 {[%emt 0:04:30]} Nf8 {[%emt 0:04:05]} 29. Bb3 {[%emt 0:05:48]} Ne6 {[%emt 0:04:36]} 30. Rd2 {[%emt 0:03:05]} Ng7 {[%emt 0:02:13]} 31. e4 {[%emt 0:03:12]} dxe4 {[%emt 0:02:54]} (31... b6 $11 32. e5 Rdd8) 32. Nxe4 $16 {[%emt 0:01:38]} (32. Bxf7 Rf8 33. Bb3 Nf5 $18) 32... Rd7 {[%emt 0:01:48]} 33. d5 $36 {[%emt 0:01:41][%mdl 2048] White has strong initiative. White is more active.} Nf5 {[%emt 0:01:36] [#]} 34. Red1 $1 {[%emt 0:02:00]} Red8 {[%emt 0:07:04]} 35. dxc6 {[%emt 0:01:03]} (35. g4 {looks sharper.} hxg4 36. fxg4 Re7 37. d6+) 35... Rxd2+ {[%emt 0:00:22]} 36. Rxd2 {[%emt 0:00:06]} Rxd2+ {[%emt 0:01:18]} 37. Nxd2 {[%emt 0:00:07]} Be6 {[%emt 0:02:04]} 38. Bxe6 {[%emt 0:03:34]} fxe6 {[%emt 0:00:04]} 39. cxb7 {[%emt 0:02:53] [#]} Nxh4 $14 {[%emt 0:05:02][%mdl 4096] Endgame KN-KN. White is a pawn up.} 40. g4 {[%emt 0:10:10] Prevents Nf5} hxg4 {[%emt 0:00:08]} 41. fxg4 {[%emt 0:30:05]} Kxb7 {[%emt 0:32:31]} 42. Kg3 {[%emt 0:02:10]} g5 {[%emt 0:03:32]} 43. Ne4 {[%emt 0:00:29]} e5 $2 {[%emt 0:00:12][%mdl 8192]} ({Black should play} 43... Nf5+ $1 $14 44. gxf5 exf5 45. Nxg5 Kb6) 44. Nxg5 $18 {[%emt 0:01:18]} Ng6 {[%emt 0:00:04]} 45. Ne4 {[%emt 0:00:00]} Kc6 {[%emt 0:00:00]} 46. Nc3 {[%emt 0:00:00]} Kd6 $2 {[%emt 0:00:00]} (46... e4 47. g5 (47. Nxe4 Kb5 $16) 47... e3) 47. Kf3 {[%emt 0:00:00]} Ne7 {[%emt 0:00:00]} 48. Ke4 {[%emt 0:00:00]} Nc6 {[%emt 0:00:00]} 49. b5 {[%emt 0:00:00]} axb5 {[%emt 0:00:00]} 50. Nxb5+ {[%emt 0:00:00]} Ke6 {[%emt 0:00:00]} 51. Nc7+ $2 {[%emt 0:00:00]} (51. g5 $18) 51... Kf6 $14 {[%emt 0:00:00]} 52. Nd5+ {[%emt 0:00:00]} Kg5 {[%emt 0:00:00] The position is equal.} 53. Ne3 {[%emt 0:00:00] Hoping for Nc4.} Nb4 {[%emt 0:00:00]} 54. b3 {[%emt 0:00:00]} Na6 {[%emt 0:00:00]} 55. Kf3 {[%emt 0:00:00]} e4+ {[%emt 0:00:00]} 56. Kg3 {[%emt 0:00:00]} (56. Kxe4 $5 Nc5+ $8 57. Kd5 Nxb3 58. Ng2 $11) 56... Nb4 {[%emt 0:00:00] Repels Nd5} 57. Nc4 {[%emt 0:02:30]} Nc2 {[%emt 0:00:00]} 58. Nd2 {[%emt 0:01:45]} (58. Nd6 $5 e3 $8 59. Ne4+ Kg6 60. Nc3 $11) 58... e3 {[%emt 0:00:00]} 59. Nf3+ {[%emt 0:00:04]} Kf6 {[%emt 0:00:00]} 60. Kg2 {[%emt 0:00:05]} Nb4 {[%emt 0:00:00]} 61. Ne1 {[%emt 0:00:55]} e2 {[%emt 0:00:00]} 62. Kf2 {[%emt 0:00:32]} Kg5 {[%emt 0:00:27]} 63. Kg3 {[%emt 0:00:08]} (63. Kxe2 {simplifies} Kxg4 64. Ke3 Kf5 65. Kd4) 63... Na2 {[%emt 0:04:26]} 64. Nf3+ {[%emt 0:00:26]} Kf6 {[%emt 0:00:07]} 65. Kh4 {[%emt 0:01:36]} Nc1 {[%emt 0:02:33]} 66. b4 {[%emt 0:00:22][%cal Bb3b4,Bb4b5,Bb5b6,Bb6b7][%mdl 32]} Nd3 {[%emt 0:00:20]} 67. b5 {[%emt 0:00:04]} e1=Q+ {[%emt 0:03:19]} 68. Nxe1 {[%emt 0:00:06]} Nxe1 $11 {[%emt 0:00:02] KN-KPP} 69. b6 {[%emt 0:00:10]} Nf3+ {[%emt 0:00:07]} 70. Kh5 {[%emt 0:00:04] White threatens b7 and mate.} Ne5 {[%emt 0:00:33]} 71. b7 {[%emt 0:00:06]} Nd7 {[%emt 0:00:21]} 72. Kh6 {[%emt 0:00:05]} Kf7 {[%emt 0:00:05]} 73. g5 {[%emt 0:00:23]} Kg8 $1 {[%emt 0:00:09]} 74. Kg6 {[%emt 0:00:27]} Nb8 {[%emt 0:00:07] Black defended with fortune.   Weighted Error Value: White=0.19 (very precise) /Black=0.22 (precise)   Loses game:     	---       	Black=1      Missed win:     	White=1     	---        Mistake:       	---       	Black=2      Inaccurate:     	White=3     	Black=3      OK:         	White=19    	Black=40     Best:        	White=6     	Black=7      Strong:       	White=1     	Black=1} 1/2-1/2

[Event "AUT Bundesliga 2024-25"]
[Site "Austria"]
[Date "2025.04.04"]
[Round "8.10"]
[White "Hracek, Zbynek"]
[Black "Korpa, Bence"]
[Result "1-0"]
[Annotator "TA"]
[ECO "B00"]
[WhiteElo "2538"]
[BlackElo "2543"]
[PlyCount "77"]
[EventDate "2024.08.28"]
[EventType "team-tourn"]
[EventCountry "AUT"]
[SourceTitle "playchess.com"]
[Source "ChessBase"]
[SourceQuality "1"]
[TimeControl "40/5400+30:1800+30"]

{[%evp 9,77,50,51,48,67,65,105,94,88,97,90,109,106,102,280,278,332,318,327,229,239,239,316,306,592,562,725,728,857,839,838,827,815,506,511,502,501,353,350,356,362,390,382,370,399,369,426,426,429,424,454,430,433,433,402,419,416,419,501,482,450,410,516,454,710,708,1097,1100,1012,995]} 1. e4 {[%emt 0:00:04]} Nc6 {[%emt 0:00:13]} 2. Nf3 {[%emt 0:00:07]} d6 {[%emt 0:00:15]} 3. d4 {[%emt 0:00:21]} Nf6 {[%emt 0:00:08]} 4. Nc3 {[%emt 0:00:05]} g6 {[%emt 0:00:11]} 5. Be3 {[%emt 0:01:03][%cal Bc1e3,Be3g5,Bg5h4][%mdl 32]} a6 {[%emt 0:04:58]} 6. Qd2 {[%emt 0:01:31] B00: Queen's Fianchetto Defence, Nimzowitsch Defence.} b5 {[%emt 0:00:48]} 7. Bd3 {[%emt 0:12:02]} Ng4 $146 {[%emt 0:06:54]} (7... e5 8. d5 Nb4 9. Be2 Ng4 10. a3 Nxe3 11. fxe3 Nxc2+ 12. Qxc2 Bh6 13. Qd3 Bd7 {1-0 Sverrisson,N (1973)-Campbell,E (1868) SCO-ch 119th 2012 (6)}) 8. Bg5 {[%emt 0:01:37] White is better.} h6 {[%emt 0:00:53]} 9. Bh4 {[%emt 0:00:54]} Bg7 {[%emt 0:24:30]} 10. h3 {[%emt 0:05:26]} Nf6 {[%emt 0:00:06]} 11. e5 {[%emt 0:06:49]} Nh5 {[%emt 0:04:11]} (11... Nh7 $16) 12. g4 $18 {[%emt 0:05:20]} dxe5 {[%emt 0:16:12]} 13. dxe5 {[%emt 0:14:31]} (13. gxh5 exd4 14. Ne4 g5 $14) 13... b4 {[%emt 0:02:00]} 14. O-O-O {[%emt 0:02:26]} bxc3 {[%emt 0:07:20]} 15. Qxc3 {[%emt 0:00:09]} Qd5 {[%emt 0:00:29] [#] Prevents Be4} 16. Bxa6 $1 {[%emt 0:12:29][%cal Bd3a6,Ba6b5,Bb5c6][%mdl 32]} (16. Bxg6 Nf4 17. Qe3 (17. Rxd5 $2 Ne2+ 18. Kd2 Nxc3 $19) (17. Bxf7+ $2 Kxf7 18. Rxd5 Ne2+ 19. Kd2 Nxc3 $19) 17... Qxa2 $11) 16... Qe4 {[%emt 0:05:41]} (16... Qe6 {keeps fighting.} 17. Bc4 (17. Bxc8 Rxc8 18. gxh5 O-O $16) (17. Rd6 $2 Qxd6 18. Bb5 Rxa2 $19) 17... Bxe5 (17... Nf4 $2 18. Rhe1 $18)) 17. Bb5 {[%emt 0:01:45]} O-O {[%emt 0:14:51][%cal Oa8a2] ...Rxa2! would now be deadly.} 18. Bxc6 {[%emt 0:00:57]} Qf4+ {[%emt 0:00:37]} 19. Kb1 {[%emt 0:00:59]} Be6 {[%emt 0:03:20]} 20. b3 {[%emt 0:00:18]} ({Inferior is} 20. gxh5 Bxa2+ 21. Ka1 Bc4+ 22. Kb1 (22. Bxa8 Rxa8+ 23. Kb1 Ba2+ 24. Ka1 Bd5+ 25. Kb1 Bxf3 $11) 22... Ba2+ 23. Ka1 Bb3+ 24. Kb1 (24. Bxa8 Rxa8+ 25. Kb1 Ba2+ 26. Ka1 Be6+ 27. Kb1 Ba2+ 28. Ka1 Bd5+ 29. Kb1 Ba2+ $11) 24... Ba2+ $11) 20... g5 {[%emt 0:00:49]} 21. Rd4 {[%emt 0:03:04]} Bxe5 {[%emt 0:00:26]} 22. Nxe5 {[%emt 0:00:06]} Qxe5 {[%emt 0:00:06]} 23. gxh5 {[%emt 0:00:11]} Rad8 {[%emt 0:01:30]} 24. Rhd1 {[%emt 0:09:34]} gxh4 {[%emt 0:00:14]} 25. Rg4+ {[%emt 0:02:00]} Bxg4 {[%emt 0:00:10]} 26. Qxe5 {[%emt 0:00:02]} Rxd1+ {[%emt 0:00:21]} 27. Kb2 {[%emt 0:00:02]} Bxh3 {[%emt 0:01:52]} 28. Qxe7 {[%emt 0:00:18]} Bf5 {[%emt 0:02:32]} 29. Qf6 {[%emt 0:03:17] Against Rd2} ({Weaker is} 29. Qxc7 Rd2 $14) 29... Bh7 {[%emt 0:00:49]} 30. Qxh4 {[%emt 0:01:22] Black must now prevent Qg4+.} Rfd8 {[%emt 0:00:12]} 31. Be4 {[%emt 0:01:42]} Bxe4 {[%emt 0:00:13]} 32. Qxe4 {[%emt 0:00:02][%mdl 4096] Endgame KQ-KRR} R1d5 {[%emt 0:00:18]} 33. Qh4 {[%emt 0:02:06]} R8d6 {[%emt 0:00:21]} 34. a4 {[%emt 0:00:08][%cal Ba2a4,Ba4a5,Ba5a6][%mdl 32]} Kf8 {[%emt 0:02:26]} 35. Qg4 {[%emt 0:01:08]} Re6 {[%emt 0:00:51]} 36. a5 {[%emt 0:01:33] White is clearly winning.} Rg5 {[%emt 0:00:53]} (36... Rdd6 $142 37. b4 Ke7) 37. Qc4 {[%emt 0:02:31]} Kg8 {[%emt 0:00:18]} 38. Qxc7 {[%emt 0:01:38]} Rxh5 {[%emt 0:00:06] [#]} 39. a6 $1 {[%emt 0:03:08][%mdl 512] Black did not feel at home in the position after the opening.   Weighted Error Value: White=0.30/Black=0.76  Loses game:     	---       	Black=1      Mistake:       	---       	Black=2      Inaccurate:     	---       	Black=3      OK:         	White=11    	Black=9      Best:        	White=5     	Black=1      Strong:       	White=1     	---} 1-0